[Event "Early Titled Tuesday Blitz | February 8 2022"]
[White "Fawole, John Oyeyemi"]
[Black "Mejia, Cherry Ann"]
[WhiteFideId "8501319"]
[BlackFideId "5206880"]
[WhiteElo "2091"]
[BlackElo "2007"]
[Result "1-0"]
[Round "11"]
[TimeControl "180+1"]
[Date "2022.02.08"]
[WhiteClock "0:00:17"]
[BlackClock "0:00:02"]

1. e4 {[%clk 0:03:00]}  c5 {[%clk 0:02:59]} 2. Nf3 {[%clk 0:03:00]}  Nc6 {[%clk 0:02:59]} 3. d4 {[%clk 0:03:01]}  cxd4 {[%clk 0:03:00]} 4. Nxd4 {[%clk 0:03:01]}  Qb6 {[%clk 0:03:01]} 5. Nb3 {[%clk 0:03:00]}  Nf6 {[%clk 0:03:00]} 6. Nc3 {[%clk 0:02:59]}  e6 {[%clk 0:03:00]} 7. Be2 {[%clk 0:02:59]}  a6 {[%clk 0:03:00]} 8. O-O {[%clk 0:02:58]}  Be7 {[%clk 0:03:00]} 9. Be3 {[%clk 0:02:56]}  Qc7 {[%clk 0:03:00]} 10. f4 {[%clk 0:02:56]}  d6 {[%clk 0:02:59]} 11. Bf3 {[%clk 0:02:56]}  b5 {[%clk 0:02:57]} 12. e5 {[%clk 0:02:48]}  Nd7 {[%clk 0:02:46]} 13. exd6 {[%clk 0:02:37]}  Bxd6 {[%clk 0:02:47]} 14. Na5 {[%clk 0:02:34]}  Nxa5 {[%clk 0:02:31]} 15. Bxa8 {[%clk 0:02:28]}  Nc4 {[%clk 0:02:30]} 16. Bc1 {[%clk 0:02:27]}  O-O {[%clk 0:02:23]} 17. Be4 {[%clk 0:02:17]}  Nf6 {[%clk 0:02:19]} 18. Bd3 {[%clk 0:02:16]}  Bb7 {[%clk 0:02:18]} 19. b3 {[%clk 0:02:05]}  Nb6 {[%clk 0:01:39]} 20. Bd2 {[%clk 0:02:03]}  Rd8 {[%clk 0:01:38]} 21. Qe2 {[%clk 0:02:00]}  Bc5+ {[%clk 0:01:34]} 22. Kh1 {[%clk 0:01:55]}  Bd4 {[%clk 0:01:34]} 23. Qe1 {[%clk 0:01:32]}  Qc6 {[%clk 0:01:33]} 24. Qg3 {[%clk 0:01:18]}  b4 {[%clk 0:00:35]} 25. Ne2 {[%clk 0:01:09]}  Bxa1 {[%clk 0:00:34]} 26. Rxa1 {[%clk 0:01:08]}  Rxd3 {[%clk 0:00:11]} 27. cxd3 {[%clk 0:01:03]}  Qc2 {[%clk 0:00:11]} 28. Qe1 {[%clk 0:00:55]}  Ng4 {[%clk 0:00:07]} 29. h3 {[%clk 0:00:35]}  Qxd3 {[%clk 0:00:07]} 30. Kg1 {[%clk 0:00:27]}  Ne3 {[%clk 0:00:05]} 31. Bxe3 {[%clk 0:00:23]}  Qxe3+ {[%clk 0:00:06]} 32. Qf2 {[%clk 0:00:22]}  Qe4 {[%clk 0:00:05]} 33. Ng3 {[%clk 0:00:19]}  Qd5 {[%clk 0:00:05]} 34. Rc1 {[%clk 0:00:19]}  Nd7 {[%clk 0:00:02]} 35. f5 {[%clk 0:00:18]}  e5 {[%clk 0:00:02]} 36. f6 {[%clk 0:00:17]}  Nxf6 {[%clk 0:00:02]} 37. Nf5 {[%clk 0:00:17]} 1-0


[Site "https://www.chess.com"]

[Event "Early Titled Tuesday Blitz | February 8 2022"]
[White "Garcia Martin, Marta"]
[Black "Barp, Alberto"]
[WhiteFideId "32084030"]
[BlackFideId "872555"]
[WhiteElo "2102"]
[BlackElo "2229"]
[Result "1-0"]
[Round "11"]
[TimeControl "180+1"]
[Date "2022.02.08"]
[WhiteClock "0:01:11"]
[BlackClock "0:01:10"]

1. e4 {[%clk 0:03:00]}  c6 {[%clk 0:02:55]} 2. Nc3 {[%clk 0:02:58]}  d5 {[%clk 0:02:56]} 3. Nf3 {[%clk 0:02:57]}  Bg4 {[%clk 0:02:56]} 4. h3 {[%clk 0:02:58]}  Bxf3 {[%clk 0:02:54]} 5. Qxf3 {[%clk 0:02:58]}  e6 {[%clk 0:02:55]} 6. d4 {[%clk 0:02:56]}  Nf6 {[%clk 0:02:53]} 7. Bd3 {[%clk 0:02:55]}  Bb4 {[%clk 0:02:44]} 8. e5 {[%clk 0:02:54]}  Nfd7 {[%clk 0:02:42]} 9. Qg3 {[%clk 0:02:48]}  Bf8 {[%clk 0:02:26]} 10. O-O {[%clk 0:02:43]}  g6 {[%clk 0:02:19]} 11. Bg5 {[%clk 0:02:37]}  Be7 {[%clk 0:02:16]} 12. Bh6 {[%clk 0:02:32]}  c5 {[%clk 0:02:11]} 13. Nb5 {[%clk 0:02:29]}  cxd4 {[%clk 0:02:07]} 14. Nxd4 {[%clk 0:02:01]}  Nc6 {[%clk 0:02:05]} 15. Nxe6 {[%clk 0:01:57]}  Qb6 {[%clk 0:01:37]} 16. Ng7+ {[%clk 0:01:49]}  Kd8 {[%clk 0:01:37]} 17. e6 {[%clk 0:01:49]}  fxe6 {[%clk 0:01:31]} 18. Nxe6+ {[%clk 0:01:48]}  Kc8 {[%clk 0:01:27]} 19. Bf4 {[%clk 0:01:15]}  Re8 {[%clk 0:01:15]} 20. Nc7 {[%clk 0:01:14]}  g5 {[%clk 0:01:10]} 21. Nxa8 {[%clk 0:01:11]} 1-0


[Site "https://www.chess.com"]

[Event "Early Titled Tuesday Blitz | February 8 2022"]
[White "Gelman, Alexander"]
[Black "Potapova, Margarita"]
[WhiteFideId "4118316"]
[BlackFideId "14126869"]
[WhiteElo "2375"]
[BlackElo "2209"]
[Result "0-1"]
[Round "11"]
[TimeControl "180+1"]
[Date "2022.02.08"]
[WhiteClock "0:00:08"]
[BlackClock "0:00:53"]

1. d4 {[%clk 0:03:00]}  Nf6 {[%clk 0:02:59]} 2. Nc3 {[%clk 0:03:00]}  d5 {[%clk 0:02:59]} 3. Bf4 {[%clk 0:03:00]}  c5 {[%clk 0:02:57]} 4. e3 {[%clk 0:03:00]}  cxd4 {[%clk 0:02:57]} 5. exd4 {[%clk 0:03:00]}  a6 {[%clk 0:02:57]} 6. Nf3 {[%clk 0:03:00]}  Nc6 {[%clk 0:02:56]} 7. Ne5 {[%clk 0:03:00]}  e6 {[%clk 0:02:50]} 8. Qd2 {[%clk 0:03:01]}  Bd6 {[%clk 0:02:47]} 9. O-O-O {[%clk 0:02:57]}  O-O {[%clk 0:02:46]} 10. Qe3 {[%clk 0:02:50]}  Qc7 {[%clk 0:02:37]} 11. f3 {[%clk 0:02:41]}  b5 {[%clk 0:02:36]} 12. g4 {[%clk 0:02:37]}  Ne7 {[%clk 0:02:17]} 13. h4 {[%clk 0:02:33]}  b4 {[%clk 0:02:12]} 14. Ne2 {[%clk 0:02:30]}  Nd7 {[%clk 0:01:57]} 15. Kb1 {[%clk 0:02:21]}  Nb6 {[%clk 0:01:54]} 16. Ng3 {[%clk 0:02:12]}  f6 {[%clk 0:01:50]} 17. Nd3 {[%clk 0:02:09]}  Nc4 {[%clk 0:01:51]} 18. Qc1 {[%clk 0:02:09]}  Nc6 {[%clk 0:01:45]} 19. Bxd6 {[%clk 0:01:51]}  Qxd6 {[%clk 0:01:46]} 20. Nf4 {[%clk 0:01:51]}  Rb8 {[%clk 0:01:42]} 21. Bxc4 {[%clk 0:01:51]}  dxc4 {[%clk 0:01:41]} 22. Ne4 {[%clk 0:01:50]}  Qc7 {[%clk 0:01:28]} 23. g5 {[%clk 0:01:35]}  f5 {[%clk 0:01:27]} 24. Nc5 {[%clk 0:01:34]}  Nxd4 {[%clk 0:01:25]} 25. Nxa6 {[%clk 0:01:14]}  Bxa6 {[%clk 0:01:23]} 26. Rxd4 {[%clk 0:01:14]}  e5 {[%clk 0:01:22]} 27. Nd5 {[%clk 0:01:03]}  Qa5 {[%clk 0:01:22]} 28. Rdd1 {[%clk 0:00:59]}  Ra8 {[%clk 0:01:23]} 29. g6 {[%clk 0:00:17]}  Bb7 {[%clk 0:01:17]} 30. Ne7+ {[%clk 0:00:15]}  Kh8 {[%clk 0:01:17]} 31. a3 {[%clk 0:00:14]}  bxa3 {[%clk 0:01:03]} 32. Rd7 {[%clk 0:00:07]}  axb2 {[%clk 0:00:52]} 33. Qxb2 {[%clk 0:00:08]}  c3 {[%clk 0:00:53]} 0-1


[Site "https://www.chess.com"]

[Event "Early Titled Tuesday Blitz | February 8 2022"]
[White "Goltseva, Ekaterina"]
[Black "Urazayev, Arystanbek"]
[WhiteFideId "24173770"]
[BlackFideId "13709810"]
[WhiteElo "2140"]
[BlackElo "2321"]
[Result "0-1"]
[Round "11"]
[TimeControl "180+1"]
[Date "2022.02.08"]
[WhiteClock "0:00:04"]
[BlackClock "0:01:46"]

1. d4 {[%clk 0:02:57]}  Nf6 {[%clk 0:02:59]} 2. c4 {[%clk 0:02:54]}  e6 {[%clk 0:03:00]} 3. Nc3 {[%clk 0:02:53]}  Bb4 {[%clk 0:03:00]} 4. g3 {[%clk 0:02:52]}  O-O {[%clk 0:02:59]} 5. Bg2 {[%clk 0:02:52]}  Bxc3+ {[%clk 0:02:59]} 6. bxc3 {[%clk 0:02:50]}  d6 {[%clk 0:03:00]} 7. e4 {[%clk 0:02:44]}  e5 {[%clk 0:02:59]} 8. Ne2 {[%clk 0:02:44]}  Nc6 {[%clk 0:02:59]} 9. O-O {[%clk 0:02:43]}  Re8 {[%clk 0:02:53]} 10. Qd3 {[%clk 0:02:30]}  Qe7 {[%clk 0:02:34]} 11. Bg5 {[%clk 0:02:10]}  h6 {[%clk 0:02:28]} 12. Bxf6 {[%clk 0:02:08]}  Qxf6 {[%clk 0:02:29]} 13. f4 {[%clk 0:02:06]}  Qe7 {[%clk 0:02:30]} 14. fxe5 {[%clk 0:01:51]}  dxe5 {[%clk 0:02:30]} 15. c5 {[%clk 0:01:42]}  Bg4 {[%clk 0:02:29]} 16. Rad1 {[%clk 0:01:22]}  Rad8 {[%clk 0:02:23]} 17. Bf3 {[%clk 0:01:20]}  Bxf3 {[%clk 0:02:13]} 18. Qxf3 {[%clk 0:01:14]}  exd4 {[%clk 0:02:13]} 19. cxd4 {[%clk 0:01:12]}  Qxe4 {[%clk 0:02:13]} 20. Qxf7+ {[%clk 0:01:09]}  Kh8 {[%clk 0:02:14]} 21. Nf4 {[%clk 0:00:38]}  Nxd4 {[%clk 0:02:08]} 22. Ng6+ {[%clk 0:00:30]}  Kh7 {[%clk 0:02:07]} 23. h4 {[%clk 0:00:08]}  Qxg6 {[%clk 0:02:03]} 24. Qxc7 {[%clk 0:00:06]}  Re2 {[%clk 0:01:46]} 25. Qxd8 {[%clk 0:00:03]}  Qxg3+ {[%clk 0:01:46]} 26. Kh1 {[%clk 0:00:04]}  Qg2# {[%clk 0:01:46]} 0-1


[Site "https://www.chess.com"]

[Event "Early Titled Tuesday Blitz | February 8 2022"]
[White "Hoffmann, Asa"]
[Black "Demin, Vladimir"]
[WhiteFideId "2001470"]
[BlackFideId "4167457"]
[WhiteElo "2117"]
[BlackElo "2487"]
[Result "0-1"]
[Round "11"]
[TimeControl "180+1"]
[Date "2022.02.08"]
[WhiteClock "0:01:23"]
[BlackClock "0:01:32"]

1. d4 {[%clk 0:02:58]}  Nf6 {[%clk 0:02:59]} 2. Bg5 {[%clk 0:02:57]}  Ne4 {[%clk 0:02:58]} 3. Bf4 {[%clk 0:02:57]}  d5 {[%clk 0:02:58]} 4. f3 {[%clk 0:02:57]}  Nd6 {[%clk 0:02:58]} 5. Nc3 {[%clk 0:02:57]}  c6 {[%clk 0:02:55]} 6. e4 {[%clk 0:02:56]}  e6 {[%clk 0:02:51]} 7. Qd2 {[%clk 0:02:56]}  b5 {[%clk 0:02:50]} 8. Bd3 {[%clk 0:02:55]}  Nc4 {[%clk 0:02:47]} 9. Bxc4 {[%clk 0:02:54]}  bxc4 {[%clk 0:02:48]} 10. Nge2 {[%clk 0:02:53]}  Bd6 {[%clk 0:02:47]} 11. O-O {[%clk 0:02:52]}  O-O {[%clk 0:02:46]} 12. b3 {[%clk 0:02:52]}  Ba6 {[%clk 0:02:41]} 13. Rfe1 {[%clk 0:02:49]}  Bxf4 {[%clk 0:02:38]} 14. Qxf4 {[%clk 0:02:40]}  Nd7 {[%clk 0:02:38]} 15. Ng3 {[%clk 0:02:35]}  Qf6 {[%clk 0:02:34]} 16. Qe3 {[%clk 0:02:21]}  Rab8 {[%clk 0:02:29]} 17. Rad1 {[%clk 0:02:19]}  Rfc8 {[%clk 0:02:11]} 18. f4 {[%clk 0:02:14]}  Nf8 {[%clk 0:02:02]} 19. e5 {[%clk 0:02:07]}  Qd8 {[%clk 0:01:54]} 20. f5 {[%clk 0:02:05]}  c5 {[%clk 0:01:48]} 21. dxc5 {[%clk 0:01:58]}  Qc7 {[%clk 0:01:42]} 22. f6 {[%clk 0:01:48]}  Qxc5 {[%clk 0:01:41]} 23. Rd4 {[%clk 0:01:45]}  cxb3 {[%clk 0:01:39]} 24. Qg5 {[%clk 0:01:37]}  Qxd4+ {[%clk 0:01:37]} 25. Kh1 {[%clk 0:01:36]}  Ng6 {[%clk 0:01:37]} 26. fxg7 {[%clk 0:01:24]}  Qxc3 {[%clk 0:01:33]} 27. Rg1 {[%clk 0:01:23]}  Qxe5 {[%clk 0:01:32]} 0-1


[Site "https://www.chess.com"]

[Event "Early Titled Tuesday Blitz | February 8 2022"]
[White "Howell, David W L"]
[Black "FGHSMN"]
[WhiteFideId "410608"]
[WhiteElo "2559"]
[BlackElo "2775"]
[Result "1/2-1/2"]
[Round "11"]
[TimeControl "180+1"]
[Date "2022.02.08"]
[WhiteClock "0:01:22"]
[BlackClock "0:01:19"]

1. e4 {[%clk 0:03:00]}  c5 {[%clk 0:02:59]} 2. a3 {[%clk 0:02:59]}  Nc6 {[%clk 0:02:56]} 3. b4 {[%clk 0:02:56]}  cxb4 {[%clk 0:02:55]} 4. axb4 {[%clk 0:02:56]}  Nxb4 {[%clk 0:02:56]} 5. Nf3 {[%clk 0:02:53]}  d6 {[%clk 0:02:56]} 6. d4 {[%clk 0:02:51]}  Nf6 {[%clk 0:02:54]} 7. Ba3 {[%clk 0:02:47]}  Nc6 {[%clk 0:02:50]} 8. d5 {[%clk 0:02:47]}  Nb8 {[%clk 0:02:48]} 9. Bb5+ {[%clk 0:02:41]}  Bd7 {[%clk 0:02:48]} 10. Bd3 {[%clk 0:02:40]}  g6 {[%clk 0:02:40]} 11. O-O {[%clk 0:02:35]}  Bg4 {[%clk 0:02:35]} 12. Nbd2 {[%clk 0:02:31]}  Bg7 {[%clk 0:02:34]} 13. Rb1 {[%clk 0:02:29]}  Qc8 {[%clk 0:02:28]} 14. h3 {[%clk 0:02:18]}  Bxf3 {[%clk 0:02:26]} 15. Nxf3 {[%clk 0:02:19]}  Nbd7 {[%clk 0:02:26]} 16. c4 {[%clk 0:02:16]}  Nc5 {[%clk 0:02:25]} 17. Bxc5 {[%clk 0:02:12]}  Qxc5 {[%clk 0:02:24]} 18. Qa4+ {[%clk 0:02:10]}  Nd7 {[%clk 0:01:59]} 19. Rxb7 {[%clk 0:02:09]}  Rd8 {[%clk 0:01:59]} 20. Rfb1 {[%clk 0:01:53]}  Qc8 {[%clk 0:01:58]} 21. Qxa7 {[%clk 0:01:36]}  O-O {[%clk 0:01:57]} 22. Rc7 {[%clk 0:01:36]}  Nc5 {[%clk 0:01:31]} 23. Rxc8 {[%clk 0:01:35]}  Rxc8 {[%clk 0:01:32]} 24. Bc2 {[%clk 0:01:34]}  Rfe8 {[%clk 0:01:32]} 25. Qa3 {[%clk 0:01:22]}  Ra8 {[%clk 0:01:30]} 26. Qe3 {[%clk 0:01:22]}  Ra2 {[%clk 0:01:28]} 27. Bd1 {[%clk 0:01:22]}  Rea8 {[%clk 0:01:24]} 28. Kh2 {[%clk 0:01:07]}  h6 {[%clk 0:01:21]} 29. e5 {[%clk 0:01:07]}  R2a3 {[%clk 0:01:20]} 30. Qe2 {[%clk 0:01:02]}  Ra2 {[%clk 0:01:15]} 31. Rb2 {[%clk 0:01:00]}  Rxb2 {[%clk 0:01:12]} 32. Qxb2 {[%clk 0:01:00]}  dxe5 {[%clk 0:01:12]} 33. Qb6 {[%clk 0:00:51]}  Rc8 {[%clk 0:01:09]} 34. Nd2 {[%clk 0:00:39]}  e4 {[%clk 0:00:58]} 35. Nb3 {[%clk 0:00:38]}  Be5+ {[%clk 0:00:54]} 36. g3 {[%clk 0:00:38]}  Nd3 {[%clk 0:00:49]} 37. Nd2 {[%clk 0:00:31]}  Rb8 {[%clk 0:00:42]} 38. Qe3 {[%clk 0:00:27]}  f5 {[%clk 0:00:18]} 39. Qxh6 {[%clk 0:00:27]}  Rb6 {[%clk 0:00:17]} 40. Kg2 {[%clk 0:00:26]}  Bg7 {[%clk 0:00:15]} 41. Qe3 {[%clk 0:00:21]}  Rb2 {[%clk 0:00:15]} 42. c5 {[%clk 0:00:20]}  Nxc5 {[%clk 0:00:16]} 43. Qxc5 {[%clk 0:00:16]}  Rxd2 {[%clk 0:00:16]} 44. Qc1 {[%clk 0:00:17]}  e3 {[%clk 0:00:15]} 45. Qxd2 {[%clk 0:00:02]}  exd2 {[%clk 0:00:15]} 46. Kf3 {[%clk 0:00:02]}  Bc3 {[%clk 0:00:15]} 47. Ke2 {[%clk 0:00:03]}  Kg7 {[%clk 0:00:15]} 48. Kd3 {[%clk 0:00:03]}  Bb4 {[%clk 0:00:15]} 49. Kc4 {[%clk 0:00:03]}  Ba5 {[%clk 0:00:14]} 50. Kb5 {[%clk 0:00:02]}  Bc3 {[%clk 0:00:14]} 51. Kc4 {[%clk 0:00:02]}  Be5 {[%clk 0:00:14]} 52. Kd3 {[%clk 0:00:02]}  f4 {[%clk 0:00:10]} 53. g4 {[%clk 0:00:03]}  Bf6 {[%clk 0:00:08]} 54. Kxd2 {[%clk 0:00:03]}  Bh4 {[%clk 0:00:08]} 55. Ke2 {[%clk 0:00:01]}  Kf6 {[%clk 0:00:08]} 56. Bc2 {[%clk 0:00:02]}  g5 {[%clk 0:00:08]} 57. Kf3 {[%clk 0:00:02]}  Ke5 {[%clk 0:00:09]} 58. Bb3 {[%clk 0:00:03]}  Kd6 {[%clk 0:00:09]} 59. Ke2 {[%clk 0:00:04]}  Ke5 {[%clk 0:00:09]} 60. f3 {[%clk 0:00:05]}  Kd6 {[%clk 0:00:10]} 61. Kd3 {[%clk 0:00:05]}  Ke5 {[%clk 0:00:10]} 62. Kc4 {[%clk 0:00:06]}  Kd6 {[%clk 0:00:10]} 63. Bc2 {[%clk 0:00:07]}  Ke5 {[%clk 0:00:10]} 64. Be4 {[%clk 0:00:08]}  Bf2 {[%clk 0:00:10]} 65. Kb5 {[%clk 0:00:08]}  Kd6 {[%clk 0:00:09]} 66. Ka6 {[%clk 0:00:09]}  Bh4 {[%clk 0:00:10]} 67. Kb7 {[%clk 0:00:09]}  Bf2 {[%clk 0:00:10]} 68. Kc8 {[%clk 0:00:10]}  Bh4 {[%clk 0:00:10]} 69. Kd8 {[%clk 0:00:11]}  e6 {[%clk 0:00:11]} 70. dxe6 {[%clk 0:00:11]}  Kxe6 {[%clk 0:00:11]} 71. Ke8 {[%clk 0:00:11]}  Kf6 {[%clk 0:00:12]} 72. Kf8 {[%clk 0:00:12]}  Bg3 {[%clk 0:00:13]} 73. Kg8 {[%clk 0:00:12]}  Bh4 {[%clk 0:00:13]} 74. Kh7 {[%clk 0:00:13]}  Bg3 {[%clk 0:00:14]} 75. Kh6 {[%clk 0:00:13]}  Bh4 {[%clk 0:00:15]} 76. Kh5 {[%clk 0:00:14]}  Bg3 {[%clk 0:00:16]} 77. Kh6 {[%clk 0:00:15]}  Bh4 {[%clk 0:00:17]} 78. Kh7 {[%clk 0:00:16]}  Bg3 {[%clk 0:00:18]} 79. Kh8 {[%clk 0:00:17]}  Bh4 {[%clk 0:00:18]} 80. Kg8 {[%clk 0:00:18]}  Bg3 {[%clk 0:00:19]} 81. Kf8 {[%clk 0:00:19]}  Bh4 {[%clk 0:00:20]} 82. Ke8 {[%clk 0:00:19]}  Bg3 {[%clk 0:00:21]} 83. Kd8 {[%clk 0:00:20]}  Bh4 {[%clk 0:00:22]} 84. Kc8 {[%clk 0:00:21]}  Bg3 {[%clk 0:00:23]} 85. Kb7 {[%clk 0:00:22]}  Bh4 {[%clk 0:00:24]} 86. Kc6 {[%clk 0:00:23]}  Bg3 {[%clk 0:00:25]} 87. Kb5 {[%clk 0:00:24]}  Bh4 {[%clk 0:00:26]} 88. Kc4 {[%clk 0:00:25]}  Bg3 {[%clk 0:00:27]} 89. Kd3 {[%clk 0:00:26]}  Bh4 {[%clk 0:00:27]} 90. Ke2 {[%clk 0:00:27]}  Bg3 {[%clk 0:00:28]} 91. Kf1 {[%clk 0:00:28]}  Bh4 {[%clk 0:00:29]} 92. Ke2 {[%clk 0:00:28]}  Bg3 {[%clk 0:00:30]} 93. Kd1 {[%clk 0:00:29]}  Bh4 {[%clk 0:00:31]} 94. Kc1 {[%clk 0:00:30]}  Bg3 {[%clk 0:00:32]} 95. Kb1 {[%clk 0:00:31]}  Bh4 {[%clk 0:00:33]} 96. Ka1 {[%clk 0:00:32]}  Bg3 {[%clk 0:00:33]} 97. Ka2 {[%clk 0:00:33]}  Bh4 {[%clk 0:00:34]} 98. Ka3 {[%clk 0:00:34]}  Bg3 {[%clk 0:00:35]} 99. Ka4 {[%clk 0:00:35]}  Bh4 {[%clk 0:00:36]} 100. Ka5 {[%clk 0:00:36]}  Bg3 {[%clk 0:00:37]} 101. Ka6 {[%clk 0:00:37]}  Bh4 {[%clk 0:00:38]} 102. Ka7 {[%clk 0:00:37]}  Ke5 {[%clk 0:00:38]} 103. Ka8 {[%clk 0:00:38]}  Kd4 {[%clk 0:00:39]} 104. Kb8 {[%clk 0:00:39]}  Ke3 {[%clk 0:00:40]} 105. Kc8 {[%clk 0:00:40]}  Kf2 {[%clk 0:00:41]} 106. Kd8 {[%clk 0:00:41]}  Kg3 {[%clk 0:00:42]} 107. Ke8 {[%clk 0:00:42]}  Kxh3 {[%clk 0:00:42]} 108. Kf8 {[%clk 0:00:43]}  Kg3 {[%clk 0:00:43]} 109. Kg8 {[%clk 0:00:43]}  Kf2 {[%clk 0:00:44]} 110. Kh8 {[%clk 0:00:44]}  Kg3 {[%clk 0:00:44]} 111. Kh7 {[%clk 0:00:45]}  Kf2 {[%clk 0:00:45]} 112. Kh6 {[%clk 0:00:46]}  Kg3 {[%clk 0:00:46]} 113. Kh5 {[%clk 0:00:47]}  Kf2 {[%clk 0:00:47]} 114. Kg6 {[%clk 0:00:48]}  Kg3 {[%clk 0:00:48]} 115. Kf5 {[%clk 0:00:49]}  Kf2 {[%clk 0:00:49]} 116. Ke5 {[%clk 0:00:50]}  Kg3 {[%clk 0:00:50]} 117. Kd5 {[%clk 0:00:51]}  Kf2 {[%clk 0:00:51]} 118. Kc5 {[%clk 0:00:52]}  Kg3 {[%clk 0:00:52]} 119. Kb5 {[%clk 0:00:52]}  Kf2 {[%clk 0:00:53]} 120. Ka5 {[%clk 0:00:53]}  Kg3 {[%clk 0:00:53]} 121. Kb4 {[%clk 0:00:54]}  Kf2 {[%clk 0:00:54]} 122. Ka4 {[%clk 0:00:55]}  Kg3 {[%clk 0:00:55]} 123. Kb3 {[%clk 0:00:56]}  Kf2 {[%clk 0:00:56]} 124. Ka3 {[%clk 0:00:57]}  Kg3 {[%clk 0:00:57]} 125. Kb2 {[%clk 0:00:58]}  Kf2 {[%clk 0:00:58]} 126. Ka2 {[%clk 0:00:58]}  Kg3 {[%clk 0:00:59]} 127. Kb1 {[%clk 0:00:59]}  Kf2 {[%clk 0:01:00]} 128. Kc2 {[%clk 0:01:00]}  Kg3 {[%clk 0:01:01]} 129. Kd2 {[%clk 0:01:01]}  Kf2 {[%clk 0:01:02]} 130. Kd3 {[%clk 0:01:01]}  Kg3 {[%clk 0:01:01]} 131. Ke2 {[%clk 0:01:02]}  Kg2 {[%clk 0:01:02]} 132. Kd1 {[%clk 0:01:02]}  Kg3 {[%clk 0:01:02]} 133. Kc2 {[%clk 0:01:03]}  Kg2 {[%clk 0:01:03]} 134. Kb3 {[%clk 0:01:04]}  Kg3 {[%clk 0:01:04]} 135. Kc4 {[%clk 0:01:04]}  Kg2 {[%clk 0:01:05]} 136. Kd5 {[%clk 0:01:05]}  Kg3 {[%clk 0:01:06]} 137. Ke5 {[%clk 0:01:06]}  Kg2 {[%clk 0:01:07]} 138. Kf5 {[%clk 0:01:07]}  Kg3 {[%clk 0:01:08]} 139. Kf6 {[%clk 0:01:08]}  Kg2 {[%clk 0:01:09]} 140. Kg6 {[%clk 0:01:09]}  Kg3 {[%clk 0:01:09]} 141. Kh5 {[%clk 0:01:10]}  Kf2 {[%clk 0:01:09]} 142. Ba8 {[%clk 0:01:11]}  Ke3 {[%clk 0:01:09]} 143. Kg6 {[%clk 0:01:12]}  Kd4 {[%clk 0:01:09]} 144. Kf5 {[%clk 0:01:13]}  Kc5 {[%clk 0:01:09]} 145. Be4 {[%clk 0:01:13]}  Kb6 {[%clk 0:01:10]} 146. Ke5 {[%clk 0:01:14]}  Ka7 {[%clk 0:01:11]} 147. Kd4 {[%clk 0:01:15]}  Kb6 {[%clk 0:01:12]} 148. Kd3 {[%clk 0:01:16]}  Kb5 {[%clk 0:01:13]} 149. Ke2 {[%clk 0:01:17]}  Kc5 {[%clk 0:01:13]} 150. Kf1 {[%clk 0:01:18]}  Kd4 {[%clk 0:01:14]} 151. Kg2 {[%clk 0:01:19]}  Ke3 {[%clk 0:01:15]} 152. Kh1 {[%clk 0:01:20]}  Ke2 {[%clk 0:01:16]} 153. Kg2 {[%clk 0:01:19]}  Ke1 {[%clk 0:01:16]} 154. Bf5 {[%clk 0:01:20]}  Ke2 {[%clk 0:01:17]} 155. Bg6 {[%clk 0:01:21]}  Ke3 {[%clk 0:01:17]} 156. Bh7 {[%clk 0:01:22]}  Ke2 {[%clk 0:01:18]} 157. Be4 {[%clk 0:01:22]}  Ke3 {[%clk 0:01:19]} 1/2-1/2


[Site "https://www.chess.com"]

[Event "Early Titled Tuesday Blitz | February 8 2022"]
[White "Iljin, Timofey"]
[Black "Eynullayev, Altay"]
[WhiteFideId "14110180"]
[BlackFideId "13413562"]
[WhiteElo "2396"]
[BlackElo "2079"]
[Result "1-0"]
[Round "11"]
[TimeControl "180+1"]
[Date "2022.02.08"]
[WhiteClock "0:02:27"]
[BlackClock "0:01:41"]

1. d4 {[%clk 0:03:00]}  Nf6 {[%clk 0:02:57]} 2. c4 {[%clk 0:03:00]}  e6 {[%clk 0:02:57]} 3. Nc3 {[%clk 0:03:00]}  Bb4 {[%clk 0:02:56]} 4. e3 {[%clk 0:03:00]}  b6 {[%clk 0:02:56]} 5. Bd3 {[%clk 0:03:00]}  c5 {[%clk 0:02:53]} 6. Ne2 {[%clk 0:02:57]}  Bb7 {[%clk 0:02:53]} 7. O-O {[%clk 0:02:57]}  O-O {[%clk 0:02:45]} 8. d5 {[%clk 0:02:56]}  exd5 {[%clk 0:02:45]} 9. cxd5 {[%clk 0:02:57]}  Nxd5 {[%clk 0:02:44]} 10. Nxd5 {[%clk 0:02:58]}  Bxd5 {[%clk 0:02:44]} 11. Bxh7+ {[%clk 0:02:58]}  Kxh7 {[%clk 0:02:44]} 12. Qd3+ {[%clk 0:02:59]}  Kg8 {[%clk 0:02:40]} 13. Qxd5 {[%clk 0:02:59]}  Nc6 {[%clk 0:02:39]} 14. Rd1 {[%clk 0:02:58]}  Qf6 {[%clk 0:02:37]} 15. a3 {[%clk 0:02:50]}  Ba5 {[%clk 0:02:33]} 16. e4 {[%clk 0:02:38]}  Ne7 {[%clk 0:01:56]} 17. Qxd7 {[%clk 0:02:29]}  Ng6 {[%clk 0:01:49]} 18. Qb5 {[%clk 0:02:29]}  Rad8 {[%clk 0:01:43]} 19. Be3 {[%clk 0:02:28]}  Qxb2 {[%clk 0:01:41]} 20. Qxb2 {[%clk 0:02:27]} 1-0


[Site "https://www.chess.com"]

[Event "Early Titled Tuesday Blitz | February 8 2022"]
[White "Iljushina, Olga"]
[Black "Sarkar, Justin"]
[WhiteFideId "4152280"]
[BlackFideId "2010011"]
[WhiteElo "1937"]
[BlackElo "2038"]
[Result "1-0"]
[Round "11"]
[TimeControl "180+1"]
[Date "2022.02.08"]
[WhiteClock "0:00:51"]
[BlackClock "0:00:02"]

1. d4 {[%clk 0:03:00]}  Nf6 {[%clk 0:02:53]} 2. c4 {[%clk 0:03:00]}  e6 {[%clk 0:02:53]} 3. Nc3 {[%clk 0:02:59]}  Bb4 {[%clk 0:02:51]} 4. Nf3 {[%clk 0:02:58]}  b6 {[%clk 0:02:47]} 5. Bg5 {[%clk 0:02:56]}  Bb7 {[%clk 0:02:43]} 6. e3 {[%clk 0:02:55]}  h6 {[%clk 0:02:35]} 7. Bh4 {[%clk 0:02:53]}  g5 {[%clk 0:02:31]} 8. Bg3 {[%clk 0:02:53]}  Ne4 {[%clk 0:02:30]} 9. Qc2 {[%clk 0:02:47]}  f5 {[%clk 0:01:00]} 10. Bd3 {[%clk 0:02:42]}  Bxc3+ {[%clk 0:00:57]} 11. bxc3 {[%clk 0:02:41]}  d6 {[%clk 0:00:56]} 12. O-O-O {[%clk 0:02:00]}  h5 {[%clk 0:00:52]} 13. h4 {[%clk 0:02:00]}  g4 {[%clk 0:00:51]} 14. Ne1 {[%clk 0:01:49]}  Nxg3 {[%clk 0:00:49]} 15. fxg3 {[%clk 0:01:49]}  Nd7 {[%clk 0:00:38]} 16. e4 {[%clk 0:01:49]}  fxe4 {[%clk 0:00:36]} 17. Bxe4 {[%clk 0:01:49]}  Bxe4 {[%clk 0:00:15]} 18. Qxe4 {[%clk 0:01:48]}  Ke7 {[%clk 0:00:16]} 19. Nd3 {[%clk 0:01:42]}  Nf6 {[%clk 0:00:13]} 20. Qe3 {[%clk 0:01:41]}  Qd7 {[%clk 0:00:11]} 21. Nf4 {[%clk 0:01:39]}  Rag8 {[%clk 0:00:02]} 22. Rde1 {[%clk 0:01:35]}  Kd8 {[%clk 0:00:03]} 23. Nxe6+ {[%clk 0:01:35]}  Kc8 {[%clk 0:00:03]} 24. Ng5 {[%clk 0:01:34]}  Re8 {[%clk 0:00:03]} 25. Qf4 {[%clk 0:01:32]}  Rxe1+ {[%clk 0:00:02]} 26. Rxe1 {[%clk 0:01:31]}  Rf8 {[%clk 0:00:02]} 27. Qe3 {[%clk 0:01:22]}  Re8 {[%clk 0:00:02]} 28. Qf2 {[%clk 0:01:21]}  Rxe1+ {[%clk 0:00:02]} 29. Qxe1 {[%clk 0:01:21]}  Qf5 {[%clk 0:00:03]} 30. Qe6+ {[%clk 0:01:14]}  Qxe6 {[%clk 0:00:03]} 31. Nxe6 {[%clk 0:01:14]}  Kd7 {[%clk 0:00:04]} 32. Nf4 {[%clk 0:01:14]}  c6 {[%clk 0:00:03]} 33. Kd2 {[%clk 0:01:13]}  Ke7 {[%clk 0:00:03]} 34. Kd3 {[%clk 0:01:10]}  Kf7 {[%clk 0:00:03]} 35. a4 {[%clk 0:01:00]}  Ke7 {[%clk 0:00:02]} 36. Ke3 {[%clk 0:00:55]}  Kf7 {[%clk 0:00:02]} 37. Nd3 {[%clk 0:00:53]}  Ke6 {[%clk 0:00:02]} 38. Kf4 {[%clk 0:00:51]} 1-0


[Site "https://www.chess.com"]